fUST/lending_fUST_20250618
["ID","MTS","AMOUNT","RATE_DAILY","PERIOD"]
[366340314,1750198233128,-178.0,0.00022104,2]
[366340315,1750198233138,-178.0,0.00022111,2]
[366340316,1750198233148,-160.0,0.00022135,2]
[366340317,1750198233157,-460.0,0.00022136,6]
[366340318,1750198233167,-460.0,0.00022136,6]
[366340319,1750198233177,-288.19,0.00022136,6]
[366340320,1750198233187,-460.0,0.00022136,6]
[366340321,1750198233197,-903.09,0.00022136,6]
[366340322,1750198233207,-617.89,0.00022136,6]
[366340323,1750198233217,-680.81,0.00022136,6]
[366340324,1750198233227,-198.9,0.00022136,6]
[366340325,1750198233237,-460.0,0.00022136,6]
[366340326,1750198233247,-460.0,0.00022136,6]
[366340327,1750198233257,-460.0,0.00022136,6]
[366340328,1750198233267,-460.0,0.00022136,6]
[366340329,1750198233278,-442.09,0.00022136,6]
[366340330,1750198233288,-1080.99,0.00022136,6]
[366340331,1750198233298,-460.0,0.00022136,6]
[366340332,1750198233308,-634.09,0.00022136,6]
[366340333,1750198233317,-460.0,0.00022136,6]
[366340334,1750198233327,-460.0,0.00022136,6]
[366340335,1750198233338,-1354.70846752,0.00022176,6]
[366340336,1750198233348,-460.0,0.00022246,6]
[366340337,1750198233358,-460.0,0.00022246,6]
[366340338,1750198233368,-460.0,0.00022246,6]
[366340339,1750198233378,-903.09,0.00022246,6]
[366340340,1750198233390,-617.89,0.00022246,6]
[366340341,1750198233400,-680.81,0.00022246,6]
[366340342,1750198233410,-460.0,0.00022246,6]
[366340343,1750198233420,-460.0,0.00022246,6]
[366340344,1750198233430,-460.0,0.00022246,6]
[366340345,1750198233440,-460.0,0.00022246,6]
[366340346,1750198233450,-1080.99,0.00022246,6]
[366340347,1750198233460,-460.0,0.00022246,6]
[366340348,1750198233470,-634.09,0.00022246,6]
[366340349,1750198233480,-460.0,0.00022246,6]
[366340350,1750198233490,-460.0,0.00022246,6]
[366340351,1750198233500,-242.24998219,0.00022281,2]
[366340352,1750198233510,-1354.70846752,0.00022314,7]
[366340353,1750198233520,-460.0,0.00022356,6]
[366340354,1750198233530,-460.0,0.00022356,6]
[366340355,1750198233540,-460.0,0.00022356,6]
[366340356,1750198233550,-903.09,0.00022356,6]
[366340357,1750198233560,-617.89,0.00022356,6]
[366340358,1750198233570,-680.81,0.00022356,6]
[366340359,1750198233580,-460.0,0.00022356,6]
[366340360,1750198233590,-321.19,0.00022356,6]
[366340361,1750198233599,-460.0,0.00022356,6]
[366340362,1750198233609,-460.0,0.00022356,6]
[366340363,1750198233619,-1080.99,0.00022356,6]
[366340364,1750198233629,-460.0,0.00022356,6]
[366340365,1750198233639,-634.09,0.00022356,6]
[366340366,1750198233648,-460.0,0.00022356,6]
[366340367,1750198233658,-155.64,0.00022356,6]
[366340368,1750198233667,-1354.70846752,0.00022452,7]
[366340369,1750198233677,-388.44107461,0.00022465,6]
[366340370,1750198233687,-460.0,0.00022465,6]
[366340371,1750198233697,-460.0,0.00022465,6]
[366340372,1750198233710,-903.09,0.00022465,6]
[366340373,1750198233720,-617.89,0.00022465,6]
[366340374,1750198233729,-680.81,0.00022465,6]
[366340375,1750198233739,-418.27,0.00022465,6]
[366340376,1750198233749,-408.92579363,0.00022465,6]
[366340377,1750198233759,-460.0,0.00022465,6]
[366340378,1750198233769,-1080.99,0.00022465,6]
[366340379,1750198233779,-577.92,0.00022465,6]
[366340380,1750198233791,-634.09,0.00022465,6]
[366340381,1750198233801,-460.0,0.00022465,6]
[366340382,1750198233812,-460.0,0.00022575,6]
[366340383,1750198233823,-460.0,0.00022575,6]
[366340384,1750198233833,-903.09,0.00022575,6]
[366340385,1750198233843,-617.89,0.00022575,6]
[366340386,1750198233853,-680.81,0.00022575,6]
[366340387,1750198233864,-503.80164938,0.00022575,6]
[366340388,1750198233873,-1080.99,0.00022575,6]
[366340389,1750198233885,-634.09,0.00022575,6]
[366340390,1750198233895,-460.0,0.00022575,6]
[366340391,1750198233904,-1354.70846752,0.0002259,7]
[366340392,1750198233914,-178.0,0.00022606,2]
[366340393,1750198233923,-178.0,0.00022617,2]
[366340394,1750198233933,-500.0,0.0002266,2]
[366340395,1750198233943,-460.0,0.00022684,6]
[366340396,1750198233953,-460.0,0.00022684,6]
[366340397,1750198233962,-903.09,0.00022684,6]
[366340398,1750198233971,-617.89,0.00022684,6]
[366340399,1750198233981,-680.81,0.00022684,6]
[366340400,1750198233991,-1080.99,0.00022684,6]
[366340401,1750198234001,-634.09,0.00022684,6]
[366340402,1750198234011,-460.0,0.00022684,6]
[366340403,1750198234020,-168.0,0.00022685,2]
[366340404,1750198234029,-1354.70846752,0.00022728,7]
[366340405,1750198234039,-242.24998219,0.00022746,2]
[366340406,1750198234050,-500.0,0.0002275,2]
[366340407,1750198234060,-460.0,0.00022794,6]
[366340408,1750198234069,-460.0,0.00022794,6]
[366340409,1750198234079,-903.09,0.00022794,6]
[366340410,1750198234088,-617.89,0.00022794,6]
[366340411,1750198234098,-680.81,0.00022794,6]
[366340412,1750198234108,-1080.99,0.00022794,6]
[366340413,1750198234119,-634.09,0.00022794,6]
[366340414,1750198234129,-460.0,0.00022794,6]
[366340415,1750198234143,-766.45,0.000228,7]
[366340416,1750198234153,-1354.70846752,0.00022866,8]
[366340417,1750198234164,-460.0,0.00022904,6]
[366340418,1750198234174,-460.0,0.00022904,6]
[366340419,1750198234185,-903.09,0.00022904,6]
[366340420,1750198234194,-617.89,0.00022904,6]
[366340421,1750198234205,-680.81,0.00022904,6]
[366340422,1750198234216,-1080.99,0.00022904,6]
[366340423,1750198234226,-634.09,0.00022904,6]
[366340424,1750198234237,-335.02,0.00022904,6]
[366340425,1750198234248,-168.0,0.00022997,2]
[366340426,1750198234258,-3590.0,0.00023,3]
[366340427,1750198234268,-1354.70846752,0.00023003,8]
[366340428,1750198234278,-460.0,0.00023013,6]
[366340429,1750198234288,-460.0,0.00023013,6]
[366340430,1750198234299,-903.09,0.00023013,6]
[366340431,1750198234310,-617.89,0.00023013,6]
[366340432,1750198234329,-680.81,0.00023013,6]
[366340433,1750198234342,-1080.99,0.00023013,6]
[366340434,1750198234353,-634.09,0.00023013,6]
[366340435,1750198234364,-500.0,0.0002309,2]
[366340436,1750198234375,-460.0,0.00023123,6]
[366340437,1750198234389,-460.0,0.00023123,6]
[366340438,1750198234400,-903.09,0.00023123,6]
[366340439,1750198234410,-617.89,0.00023123,6]
[366340440,1750198234421,-680.81,0.00023123,6]
[366340441,1750198234432,-1080.99,0.00023123,6]
[366340442,1750198234443,-634.09,0.00023123,6]
[366340443,1750198234453,-1354.70846752,0.00023141,8]
[366340444,1750198234462,-1000.0,0.00023208,2]
[366340445,1750198234473,-242.24998219,0.0002321,2]
[366340446,1750198234483,-460.0,0.00023232,6]
[366340447,1750198234494,-460.0,0.00023232,6]
[366340448,1750198234504,-903.09,0.00023232,6]
[366340449,1750198234514,-617.89,0.00023232,6]
[366340450,1750198234524,-680.81,0.00023232,6]
[366340451,1750198234533,-1080.99,0.00023232,6]
[366340452,1750198234543,-634.09,0.00023232,6]
[366340453,1750198234554,-1354.70846752,0.00023279,8]
[366340454,1750198234564,-500.0,0.00023283,2]
[366340455,1750198234573,-500.0,0.00023312,2]
[366340456,1750198234583,-500.0,0.00023338,2]
[366340457,1750198234593,-460.0,0.00023342,6]
[366340458,1750198234603,-460.0,0.00023342,6]
[366340459,1750198234613,-903.09,0.00023342,6]
[366340460,1750198234623,-617.89,0.00023342,6]
[366340461,1750198234635,-680.81,0.00023342,6]
[366340462,1750198234645,-1080.99,0.00023342,6]
[366340463,1750198234655,-634.09,0.00023342,6]
[366340464,1750198234665,-500.0,0.00023392,2]
[366340465,1750198234675,-500.0,0.00023408,2]
[366340466,1750198234685,-1354.70846752,0.00023417,9]
[366340467,1750198234695,-460.0,0.00023452,6]
[366340468,1750198234707,-460.0,0.00023452,6]
[366340469,1750198234718,-903.09,0.00023452,6]
[366340470,1750198234728,-617.89,0.00023452,6]
[366340471,1750198234737,-680.81,0.00023452,6]
[366340472,1750198234748,-1080.99,0.00023452,6]
[366340473,1750198234758,-634.09,0.00023452,6]
[366340474,1750198234768,-287.7,0.00023458,6]
[366340475,1750198234921,-500.0,0.00023465,2]
[366340476,1750198234931,-160.0,0.00023505,2]
[366340477,1750198234941,-424.62582665,0.00023545,2]
[366340478,1750198234951,-845.62440851,0.00023545,2]
[366340479,1750198234962,-160.0,0.00023545,2]
[366340480,1750198234973,-160.0,0.00023545,2]
[366340481,1750198234983,-559.04,0.00023551,3]
[366340482,1750198234992,-1354.70846752,0.00023555,9]
[366340483,1750198235002,-460.0,0.00023561,6]
[366340484,1750198235013,-382.9487279,0.00023561,6]
[366340485,1750198235023,-903.09,0.00023561,6]
[366340486,1750198235032,-617.89,0.00023561,6]
[366340487,1750198235042,-680.81,0.00023561,6]
[366340488,1750198235052,-1080.99,0.00023561,6]
[366340489,1750198235062,-634.09,0.00023561,6]
[366340490,1750198235072,-500.0,0.00023606,2]
[366340491,1750198235082,-287.7,0.00023613,6]
[366340492,1750198235092,-500.0,0.00023631,2]
[366340493,1750198235101,-464.95141723,0.00023671,6]
[366340494,1750198235111,-903.09,0.00023671,6]
[366340495,1750198235121,-617.89,0.00023671,6]
[366340496,1750198235131,-680.81,0.00023671,6]
[366340497,1750198235143,-1080.99,0.00023671,6]
[366340498,1750198235154,-634.09,0.00023671,6]
[366340499,1750198235164,-242.24998219,0.00023674,2]
[366340500,1750198235174,-1354.70846752,0.00023693,9]
[366340501,1750198235184,-162.34237939,0.00023726,2]
[366340502,1750198235195,-396.88900501,0.00023727,2]
[366340503,1750198235205,-5000.0,0.00023727,2]
[366340504,1750198235215,-207.4,0.00023727,2]
[366340505,1750198235226,-287.7,0.00023769,6]
[366340506,1750198235236,-903.09,0.0002378,6]
[366340507,1750198235246,-617.89,0.0002378,6]
[366340508,1750198235256,-680.81,0.0002378,6]
[366340509,1750198235267,-1080.99,0.0002378,6]
[366340510,1750198235277,-634.09,0.0002378,6]
[366340511,1750198235287,-1354.70846752,0.00023831,10]
[366340512,1750198235296,-213.39869953,0.00023852,2]
[366340513,1750198235306,-835.82910252,0.00023852,2]
[366340514,1750198235315,-229.94211981,0.00023852,2]
[366340515,1750198235324,-500.0,0.00023878,2]
[366340516,1750198235333,-432.76371728,0.00023888,2]
[366340517,1750198235343,-903.09,0.0002389,6]
[366340518,1750198235356,-617.89,0.0002389,6]
[366340519,1750198235366,-680.81,0.0002389,6]
[366340520,1750198235375,-1080.99,0.0002389,6]
[366340521,1750198235388,-634.09,0.0002389,6]
[366340522,1750198235397,-194.13668949,0.00023891,2]
[366340523,1750198235407,-287.7,0.00023924,6]
[366340524,1750198235417,-1354.70846752,0.00023969,10]
[366340525,1750198235427,-3000.0,0.00024,2]
[366340526,1750198235437,-766.45,0.00024,7]
[366340527,1750198235447,-903.09,0.00024,6]
[366340528,1750198235457,-617.89,0.00024,6]
[366340529,1750198235467,-680.81,0.00024,6]
[366340530,1750198235477,-1080.99,0.00024,6]
[366340531,1750198235487,-634.09,0.00024,6]
[366340532,1750198235497,-3000.0,0.0002401,2]
[366340533,1750198235507,-3000.0,0.0002402,2]
[366340534,1750198235516,-162.34237939,0.00024027,2]
[366340535,1750198235526,-3000.0,0.0002403,2]
[366340536,1750198235536,-3000.0,0.0002404,2]
[366340537,1750198235546,-3000.0,0.0002405,2]
[366340538,1750198235555,-3000.0,0.0002406,2]
[366340539,1750198235565,-3000.0,0.0002407,2]
[366340540,1750198235574,-287.7,0.00024079,7]
[366340541,1750198235584,-3000.0,0.0002408,2]
[366340542,1750198235594,-3000.0,0.0002409,2]
[366340543,1750198235603,-3000.0,0.000241,2]
[366340544,1750198235613,-1354.70846752,0.00024107,10]
[366340545,1750198235623,-903.09,0.00024109,6]
[366340546,1750198235632,-617.89,0.00024109,6]
[366340547,1750198235642,-680.81,0.00024109,6]
[366340548,1750198235654,-1080.99,0.00024109,6]
[366340549,1750198235664,-634.09,0.00024109,6]
[366340550,1750198235674,-3000.0,0.0002411,2]
[366340551,1750198235684,-3000.0,0.0002412,2]
[366340552,1750198235693,-453.24,0.00024122,2]
[366340553,1750198235705,-3000.0,0.0002413,2]
[366340554,1750198235719,-242.24998219,0.00024138,2]
[366340555,1750198235730,-3000.0,0.0002414,2]
[366340556,1750198235739,-3000.0,0.0002415,2]
[366340557,1750198235748,-3000.0,0.0002416,2]
[366340558,1750198235759,-600.0,0.0002416,2]
[366340559,1750198235769,-3000.0,0.0002417,2]
[366340560,1750198235779,-3000.0,0.0002418,2]
[366340561,1750198235788,-3000.0,0.0002419,2]
[366340562,1750198235799,-3000.0,0.000242,2]
[366340563,1750198235809,-1127.71,0.000242,2]
[366340564,1750198235819,-3000.0,0.0002421,2]
[366340565,1750198235828,-903.09,0.00024219,6]
[366340566,1750198235839,-617.89,0.00024219,6]
[366340567,1750198235849,-680.81,0.00024219,6]
[366340568,1750198235859,-1080.99,0.00024219,6]
[366340569,1750198235869,-634.09,0.00024219,6]
[366340570,1750198235879,-3000.0,0.0002422,2]
[366340571,1750198235888,-3000.0,0.0002423,2]
[366340572,1750198235898,-287.7,0.00024235,7]
[366340573,1750198235907,-3000.0,0.0002424,2]
[366340574,1750198235917,-1354.70846752,0.00024245,10]
[366340575,1750198235926,-3000.0,0.0002425,2]
[366340576,1750198235936,-3000.0,0.0002426,2]
[366340577,1750198235946,-3000.0,0.0002427,2]
[366340578,1750198235955,-3000.0,0.0002428,2]
[366340579,1750198235965,-3000.0,0.0002429,2]
[366340580,1750198235975,-500.0,0.0002429,2]
[366340581,1750198235984,-3000.0,0.000243,2]
[366340582,1750198235994,-3000.0,0.0002431,2]
[366340583,1750198236004,-3000.0,0.0002432,2]
[366340584,1750198236013,-903.09,0.00024328,6]
[366340585,1750198236023,-617.89,0.00024328,6]
[366340586,1750198236033,-680.81,0.00024328,6]
[366340587,1750198236043,-1080.99,0.00024328,6]
[366340588,1750198236052,-634.09,0.00024328,6]
[366340589,1750198236062,-3000.0,0.0002433,2]
[366340590,1750198236072,-3000.0,0.0002434,2]
[366340591,1750198236082,-500.0,0.00024344,2]
[366340592,1750198236093,-3000.0,0.0002435,2]
[366340593,1750198236103,-162.34237939,0.00024356,2]
[366340594,1750198236113,-3000.0,0.0002436,2]
[366340595,1750198236123,-160.0,0.00024366,2]
[366340596,1750198236132,-550.8119599,0.0002437,2]
[366340597,1750198236208,-2449.1880401,0.0002437,2]
[366340598,1750198236219,-3000.0,0.0002438,2]
[366340599,1750198236229,-1354.70846752,0.00024383,11]
[366340600,1750198236239,-1351.55025204,0.0002439,2]
[366340605,1750198238072,-460.0,0.00021917,6]
[366340606,1750198238083,-452.52392327,0.00022027,6]
[366340611,1750198238183,-7.47607673,0.00022027,6]
[366340613,1750198238193,-358.42,0.00022136,6]
[366340615,1750198238204,-33504.69188,0.0002356,2]
[366340617,1750198238214,-156.43773558,0.00024089,2]
[366340619,1750198238223,-500.0,0.00024089,2]
[366340621,1750198238233,-406.0,0.0002429,2]
[366340623,1750198238243,-1648.44974796,0.0002439,2]
[366340624,1750198238253,-287.7,0.0002439,7]
[366340625,1750198238262,-3000.0,0.000244,2]
[366340626,1750198238271,-4153.214324,0.0002441,2]
[366340628,1750198238281,-1093.89,0.00024412,2]
[366340630,1750198238290,-903.13150689,0.00024438,6]
[366340631,1750198238299,-618.11,0.00024438,6]
[366340632,1750198238309,-680.83,0.00024438,6]
[366340634,1750198238317,-1081.22450184,0.00024438,6]
[366340635,1750198238326,-634.32318787,0.00024438,6]
[366340636,1750198238336,-500.0,0.0002448,2]
[366340637,1750198238345,-500.0,0.00024491,2]
[366340638,1750198238355,-500.0,0.00024507,2]
[366340639,1750198238365,-1354.70846752,0.00024521,11]
[366340640,1750198238374,-287.7,0.00024546,7]
[366340641,1750198238384,-242.24998219,0.00024603,2]
[366340642,1750198238395,-150.0,0.00024624,2]
[366340643,1750198238405,-236.195,0.00024624,2]
[366340644,1750198238414,-150.0,0.00024624,2]
[366340645,1750198238424,-150.0,0.0002465,2]
[366340646,1750198238434,-964.514,0.0002465,2]
[366340647,1750198238444,-653.0,0.0002465,2]
[366340648,1750198238454,-2160.0,0.0002465,2]
[366340649,1750198238464,-300.0,0.00024657,4]
[366340650,1750198238475,-160.0,0.00024657,4]
[366340651,1750198238485,-200.0,0.00024657,6]
[366340652,1750198238495,-209.12148944,0.00024657,6]
[366340653,1750198238505,-380.0,0.00024658,2]
[366340654,1750198238514,-1000.0,0.00024658,2]
[366340655,1750198238524,-1000.0,0.00024658,2]
[366340656,1750198238534,-1000.0,0.00024658,2]
[366340657,1750198238544,-169.95627862,0.00024658,2]
[366340658,1750198238554,-1000.0,0.00024658,2]
[366340659,1750198238563,-2200.0,0.00024658,2]
[366340660,1750198238573,-500.0,0.00024658,2]
[366340661,1750198238583,-1354.70846752,0.00024659,11]
[366340662,1750198238593,-780.586686,0.00024663,3]
[366340663,1750198238603,-500.0,0.00024685,2]
[366340664,1750198238612,-287.7,0.00024701,7]
[366340665,1750198238622,-500.0,0.00024713,2]
[366340666,1750198238632,-500.0,0.0002474,2]
[366340667,1750198238644,-500.0,0.00024768,2]
[366340668,1750198238654,-500.0,0.00024795,2]
[366340669,1750198238664,-1354.70846752,0.00024797,11]
[366340670,1750198238674,-8765.16046724,0.00024799,2]
[366340671,1750198238684,-5000.0,0.00024799,2]
[366340672,1750198238694,-5000.0,0.00024799,2]
[366340673,1750198238705,-151.0,0.000248,9]
[366340674,1750198238720,-151.0,0.000248,9]
[366340675,1750198238730,-350.05,0.000248,31]
[366340676,1750198238740,-350.05,0.000248,31]
[366340677,1750198238750,-350.05,0.000248,31]
[366340678,1750198238759,-350.05,0.000248,31]
[366340679,1750198238768,-350.05,0.000248,31]
[366340680,1750198238778,-350.05,0.000248,31]
[366340681,1750198238790,-350.05,0.000248,31]
[366340682,1750198238799,-350.05,0.000248,31]
[366340683,1750198238809,-350.05,0.000248,31]
[366340684,1750198238819,-350.05,0.000248,31]
[366340685,1750198238828,-350.05,0.000248,31]
[366340686,1750198238838,-350.05,0.000248,31]
[366340687,1750198238848,-350.05,0.000248,31]
[366340688,1750198238857,-350.05,0.000248,31]
[366340689,1750198238866,-350.05,0.000248,31]
[366340690,1750198238876,-350.05,0.000248,31]
[366340691,1750198238887,-10920.1168039,0.000248,2]
[366340692,1750198238897,-500.0,0.00024822,2]
[366340693,1750198238907,-500.0,0.0002485,2]
[366340694,1750198238917,-287.7,0.00024856,7]
[366340695,1750198238926,-800.0,0.00024859,2]
[366340696,1750198238936,-160.0,0.00024875,2]
[366340697,1750198238946,-289.0,0.00024877,2]
[366340698,1750198238957,-1820.01946732,0.0002488,2]
[366340699,1750198238967,-727785.197373,0.000249,2]
[366340700,1750198238976,-500.0,0.00024931,2]
[366340701,1750198238986,-1354.70846752,0.00024934,12]
[366340702,1750198238996,-366.36,0.00024958,2]
[366340703,1750198239005,-800.0,0.0002498,2]
[366340704,1750198239015,-800.0,0.00024987,2]
[366340705,1750198239026,-322.32400716,0.00024999,2]
[366340706,1750198239035,-206.0,0.00025,2]
[366340707,1750198239045,-151.0,0.00025,7]
[366340708,1750198239054,-208.0,0.00025,2]
[366340709,1750198239064,-152.0,0.00025,120]
[366340710,1750198239074,-150.0,0.00025,2]
[366340711,1750198239084,-2000.0,0.00025,2]
[366340712,1750198239094,-95.13929706,0.00025,2]
[366340713,1750198239107,-729.81289455,0.00025,2]
[366341036,1750198243130,-460.0,0.00021917,6]
[366341038,1750198243140,-460.0,0.00022027,6]
[366341040,1750198243150,-460.0,0.00022136,6]
[366341042,1750198243159,-460.0,0.00022246,6]
[366341044,1750198243168,-46.22922346,0.00022356,6]
[366341257,1750198246184,-254.77268796,0.00021917,6]
[366341259,1750198246195,-205.22731204,0.00021917,6]
[366341261,1750198246205,-460.0,0.00021917,6]
[366341263,1750198246214,-460.0,0.00021917,6]
[366341265,1750198246223,-414.44,0.00022027,6]
[366341267,1750198246233,-413.77077654,0.00022356,6]
[366341269,1750198246243,-1576.87687154,0.00023324,2]
[366341893,1750198365748,182.446627,0.00013699,2]
[366341894,1750198369431,10000.0,0.000246,120]
[366341897,1750198409560,20000.0,0.000246,120]
[366341898,1750198431921,7175.98949,0.000246,120]
[366341922,1750199061594,185.56770079,0.00025166,120]
[366341926,1750199155141,-170.5969198,0.00019137,2]
[366341927,1750199184529,-300.0,0.00018946,2]
[366341928,1750199228084,-207.4455,0.00018946,2]
[366341929,1750199229225,-378.23402232,0.00018946,2]
[366341930,1750199246081,-408.14637744,0.00018946,2]
[366341931,1750199250672,-222.04152509,0.00018946,2]
[366341938,1750199319882,150.99999957,0.00025167,120]
[366341943,1750199349117,-3484.13257515,0.00018946,2]
[366341944,1750199349138,-166.51077692,0.00019722,2]
[366341945,1750199351079,-179.50280547,0.00019722,2]
[366341946,1750199351099,-182.446627,0.00020187,2]
[366341947,1750199351119,-282.45745335,0.00020291,2]
[366341948,1750199354775,-150.26498568,0.00018711,2]
[366341949,1750199355154,-4849.73501432,0.00018711,2]
[366341950,1750199355176,-50.26498568,0.000189,2]
[366341952,1750199361088,-99.73501432,0.000189,2]
[366341953,1750199361111,-601.67336695,0.00020291,2]
[366341954,1750199361133,-195.0856988,0.00020524,2]
[366341955,1750199361155,-1069.96215539,0.00021068,2]
[366341956,1750199361178,-523.0,0.00021243,2]
[366341957,1750199361200,-300.0,0.0002133,2]
[366341958,1750199361222,-347.81292432,0.00021332,2]
[366341993,1750199422812,175.419009,0.00013699,2]
[366341994,1750199423454,175.419009,0.00020187,2]
[366342324,1750199438185,-3039.69120669,0.00021119,2]
[366342325,1750199438200,-1960.30879331,0.00021119,2]
[366342326,1750199438210,-168.46429335,0.00021232,2]
[366342327,1750199438219,-423.75752643,0.00021332,2]
[366342328,1750199438231,-76.24247357,0.00021332,2]
[366342329,1750199438240,-629.64963977,0.000219,6]
[366342330,1750199438250,-300.0,0.00021914,2]
[366342331,1750199438260,-13284.69409812,0.00021915,2]
[366342332,1750199438269,-500.0,0.00021916,2]
[366342333,1750199438278,-500.0,0.00021916,2]
[366342334,1750199438287,-500.0,0.00021916,2]
[366342335,1750199438297,-500.0,0.00021916,2]
[366342336,1750199438306,-500.0,0.00021916,2]
[366342337,1750199438315,-500.0,0.00021916,2]
[366342338,1750199438325,-500.0,0.00021916,2]
[366342339,1750199438333,-448.42474342,0.00021916,2]
[366342340,1750199438343,-500.0,0.00021916,2]
[366342341,1750199438352,-500.0,0.00021916,2]
[366342342,1750199438361,-500.0,0.00021916,2]
[366342343,1750199438370,-500.0,0.00021916,2]
[366342345,1750199438380,-500.0,0.00021916,2]
[366342346,1750199438389,-234.91045019,0.00021916,2]
[366342347,1750199438398,-500.0,0.00021916,2]
[366342348,1750199438407,-316.35569535,0.00021916,2]
[366342349,1750199438416,-500.0,0.00021916,2]
[366342350,1750199438425,-500.0,0.00021916,2]
[366342351,1750199438434,-500.0,0.00021916,2]
[366342352,1750199438443,-562.57660713,0.00021916,2]
[366342353,1750199438452,-500.0,0.00021916,2]
[366342354,1750199438461,-220.30241134,0.00021916,2]
[366342355,1750199438470,-500.0,0.00021916,2]
[366342356,1750199438479,-500.0,0.00021916,2]
[366342357,1750199438488,-500.0,0.00021916,2]
[366342358,1750199438498,-500.0,0.00021916,2]
[366342359,1750199438507,-500.0,0.00021916,2]
[366342360,1750199438516,-500.0,0.00021916,2]
[366342361,1750199438525,-500.0,0.00021916,2]
[366342362,1750199438534,-500.0,0.00021916,2]
[366342363,1750199438543,-500.0,0.00021916,2]
[366342364,1750199438552,-500.0,0.00021916,2]
[366342365,1750199438561,-500.0,0.00021916,2]
[366342366,1750199438571,-460.0,0.00021917,6]
[366342367,1750199438580,-460.0,0.00021917,6]
[366342368,1750199438589,-460.0,0.00021917,6]
[366342369,1750199438598,-440.0,0.00021917,6]
[366342370,1750199438607,-460.0,0.00021917,6]
[366342371,1750199438616,-460.0,0.00021917,6]
[366342372,1750199438626,-460.0,0.00021917,6]
[366342373,1750199438635,-460.0,0.00021917,6]
[366342374,1750199438644,-460.0,0.00021917,6]
[366342375,1750199438653,-460.0,0.00021917,6]
[366342376,1750199438663,-384.6813826,0.00021917,6]
[366342377,1750199438672,-500.0,0.00021917,6]
[366342378,1750199438682,-460.0,0.00021917,6]
[366342380,1750199438692,-460.0,0.00021917,6]
[366342382,1750199438702,-460.0,0.00021917,6]
[366342384,1750199438711,-440.0,0.00021917,6]
[366342386,1750199438720,-460.0,0.00021917,6]
[366342388,1750199438730,-460.0,0.00021917,6]
[366342390,1750199438740,-440.0,0.00021917,6]
[366342392,1750199438748,-460.0,0.00021917,6]
[366342393,1750199438757,-460.0,0.00021917,6]
[366342395,1750199438766,-280.0,0.00021917,6]
[366342397,1750199438775,-460.0,0.00021917,6]
[366342399,1750199438785,-460.0,0.00021917,6]
[366342401,1750199438794,-460.0,0.00021917,6]
[366342403,1750199438803,-460.0,0.00021917,6]
[366342404,1750199438813,-370.0,0.00021917,6]
[366342405,1750199438823,-460.0,0.00021917,6]
[366342406,1750199438832,-460.0,0.00021917,6]
[366342407,1750199438842,-460.0,0.00021917,6]
[366342408,1750199438851,-460.0,0.00021917,6]
[366342409,1750199438861,-460.0,0.00021917,6]
[366342410,1750199438870,-500.0,0.00021917,6]
[366342411,1750199438879,-596.57,0.00021917,6]
[366342412,1750199438888,-460.0,0.00021917,6]